Cogmind - Beta 9.6 @@@ ROGUE MODE // 2020.06.05 @ 13:19:55 Player: RNGesus Result: Destroyed by L-31 Rogue with Katana Performance ------------- Evolutions (0) 0 Regions Visited (4) 800 Robots Destroyed (50) 250 Value Destroyed (945) 945 Prototype IDs (0) 0 Alien Tech Used (0) 0 Bonus (60) 60 TOTAL SCORE: 2055 Bonus ------- Follower Combat Kills 60 Cogmind --------- Core Integrity 0/250 Matter 300/300 Energy 100/100 System Corruption 2% Temperature Cool (11) Movement Walking (120) Location -9/Mines Parts ------- > --- POWER (1) -------- (None) > --- PROPULSION (2) --- Aluminum Leg Carbon-fiber Leg > --- UTILITY (2) ------ Small Storage Unit Medium Storage Unit > --- WEAPON (2) ------- Light Assault Rifle > --- INVENTORY (10) --- Aluminum Leg Improved Heat Sink Improved Heat Sink Improved Heat Sink Improved Heat Sink Makeshift Sensor Array Hacking Suite Makeshift System Shield Shock Rifle Light Assault Rifle Peak State ------------ > --- POWER ------------ Light Ion Engine > --- PROPULSION ------- Aluminum Leg Aluminum Leg > --- UTILITY ---------- Small Storage Unit Medium Armor Plating > --- WEAPON ----------- EM Shotgun EM Shotgun > --- INVENTORY -------- Light Ion Engine Aluminum Leg Aluminum Leg Hacking Suite EM Shotgun EM Shotgun [Rating: 11] Favorites ----------- Power Light Ion Engine Engine Light Ion Engine Propulsion Aluminum Leg Leg Aluminum Leg Utility Small Storage Unit Storage Small Storage Unit Protection Medium Armor Plating Weapon Light Assault Rifle Energy Gun EM Shotgun Ballistic Gun Light Assault Rifle Build | -11 -10 -10 -10 -9 ------- Run | Scr Mat Min Exi Min Slots Evolved . | . . . . . Power . | . . . . . Propulsion . | . . . . . Utility . | . . . . . Weapon . | . . . . . Parts Attached 35 | 6 15 13 1 . Power 4 | 1 1 2 . . Engine 4 | 1 1 2 . . Core . | . . . . . Reactor . | . . . . . Propulsion 13 | 2 6 4 1 . Treads . | . . . . . Leg 13 | 2 6 4 1 . Wheel . | . . . . . Hover . | . . . . . Flight . | . . . . . Utility 6 | 1 5 . . . Device . | . . . . . Storage 3 | 1 2 . . . Processor . | . . . . . Hackware . | . . . . . Protection 3 | . 3 . . . Artifact . | . . . . . Weapon 12 | 2 3 7 . . Energy Gun 6 | . 3 3 . . Energy Cannon . | . . . . . Ballistic Gun 6 | 2 . 4 . . Ballistic Cannon . | . . . . . Launcher . | . . . . . Special Weapon . | . . . . . Impact Weapon . | . . . . . Slashing Weapon . | . . . . . Piercing Weapon . | . . . . . Special Melee Weapon . | . . . . . Unidentified Prototypes . | . . . . . Parts Lost 12 | . 2 8 . 2 Power 2 | . . 1 . 1 Propulsion 1 | . . 1 . . Utility 1 | . 1 . . . Weapon 8 | . 1 6 . 1 Highest Loss Streak 2 | . 1 2 . 2 Average Slot Usage (%) 98 | . 99 96 100 100 Engine 13 | . 14 13 14 14 Leg 27 | . 27 28 28 28 Storage 23 | . 14 28 28 28 Protection 4 | . 13 . . . Energy Gun 12 | . 19 14 . . Ballistic Gun 14 | . 8 10 28 28 Naked Turns . | . . . . . Heaviest Build 24 | 10 24 21 17 17 Greatest Support 25 | 20 20 25 25 25 Greatest Overweight (x) 3 | 3 1 1 . . Average Overweight (x) . | . . . . . Largest Inventory Capacity 10 | 6 10 10 10 10 Average Capacity 8 | 5 6 10 10 10 Most Carried 10 | 2 6 9 10 10 Average Carried 6 | 1 5 5 7 10 Final Capacity 10 | 6 10 10 10 10 Final Carried 10 | 2 6 5 10 10 Class Distribution -------------------- 58% | Mutant 41% | Scavenger-Mutant Dominant Class ---------------- Mutant | -10/Materials Mutant | -10/Mines Scavenger-Mutant | -10/Exiles Scavenger-Mutant | -9/Mines Resources | -11 -10 -10 -10 -9 ----------- Run | Scr Mat Min Exi Min Matter Collected 754 | 243 272 169 70 . Remotely . | . . . . . Salvage Created 1623 | . 933 555 135 . Parts 109 | . 56 49 4 . Haulers Intercepted 1 | . 1 . . . Recyclers Shooed 2 | . 2 . . . Parts Field Recycled . | . . . . . Retrieved Matter . | . . . . . Parts Self-Destructed . | . . . . . Prevented . | . . . . . Kills | -11 -10 -10 -10 -9 ------- Run | Scr Mat Min Exi Min Combat Hostiles Destroyed 37 | . 16 21 . . Guns 35 | . 14 21 . . AOE 2 | . 2 . . . Classes Destroyed 9 | . 7 2 . . Worker 5 | . 3 2 . . Tunneler 1 | . . 1 . . Hauler 1 | . 1 . . . Recycler 2 | . 2 . . . Operator 3 | . 3 . . . Watcher 1 | . 1 . . . Swarmer 17 | . 3 14 . . Grunt 19 | . 13 6 . . Assembled 1 | . . 1 . . Best Kill Streak 4 | . 4 4 . . Combat Bots Only 3 | . 3 3 . . Max Kills in Single Turn 3 | . 3 2 . . Gunslinging 1 | . . 1 . . Exploded 2 | . 2 . . . Melee . | . . . . . Uniques/NPCs Destroyed . | . . . . . Combat | -11 -10 -10 -10 -9 -------- Run | Scr Mat Min Exi Min Damage Taken 1673 | . 602 886 . 185 Core 251 | . 77 126 . 48 Absorbed by Shields . | . . . . . Core Remaining (%) 100 | 100 . . . . Volleys Fired 162 | . 51 79 30 2 Largest 2 | . 2 2 2 2 Hottest 90 | . 90 90 40 40 Shots Fired 283 | . 100 119 60 4 Gun 283 | . 100 119 60 4 Cannon . | . . . . . Launcher . | . . . . . Special . | . . . . . Kinetic 154 | . 36 54 60 4 Thermal 24 | . . 24 . . Explosive . | . . . . . Electromagnetic 105 | . 64 41 . . Robot Hit Streak 20 | . 20 8 17 1 Robot Miss Streak 5 | . 3 5 2 1 Penetration Max . | . . . . . Secondary Targets 5 | . 1 4 . . Max Gunslinging Chain 1 | . 1 1 . . Shots Hit Robots 206 | . 76 81 47 2 Core Hits 105 | . 45 43 16 1 Critical Hits . | . . . . . Critical Kills . | . . . . . Critical Parts Destroyed . | . . . . . Melee Attacks . | . . . . . Impact . | . . . . . Slashing . | . . . . . Piercing . | . . . . . Sneak Attacks . | . . . . . Combat Hostiles . | . . . . . Follow-up Attacks . | . . . . . Damage Inflicted 2375 | . 1259 799 292 25 Guns 2158 | . 1071 770 292 25 Cannons . | . . . . . Explosions 217 | . 188 29 . . Melee . | . . . . . Ramming . | . . . . . Kinetic 747 | . 203 227 292 25 Thermal 358 | . 188 170 . . Explosive . | . . . . . Electromagnetic 1270 | . 868 402 . . Impact . | . . . . . Slashing . | . . . . . Piercing . | . . . . . Highest Corruption 2 | . 2 2 2 2 Average Corruption 2 | . 2 2 2 2 Corruption Purged . | . . . . . Effects 32 | . 7 11 13 1 Message Errors 8 | . 3 1 4 . Heat Flow Errors 6 | . 2 2 2 . Energy Discharges 7 | . . 4 2 1 Data Loss (minor) 6 | . . 2 4 . Targeting Errors 5 | . 2 2 1 . Overload Shots . | . . . . . Overflow Damage . | . . . . . Projectiles . | . . . . . Explosions . | . . . . . Melee . | . . . . . Knockbacks . | . . . . . Impact . | . . . . . Kinetic . | . . . . . Secondary . | . . . . . Self-Inflicted Damage 59 | . 38 21 . . Shots 2 | . 1 1 . . Rammed . | . . . . . Targets Rammed . | . . . . . Kicked . | . . . . . Crushed . | . . . . . Highest Temperature 288 | . 227 288 120 24 Average Temperature 75 | . 54 107 59 16 Received Heat Transfer 411 | . 228 135 . 48 Effects 1 | . . 1 . . Energy Bleed 1 | . . 1 . . Siege Activations . | . . . . . Robots Corrupted 1 | . 1 . . . Combat Hostiles . | . . . . . Parts Fried 12 | . 10 2 . . Impact Corruptions . | . . . . . Robots Melted . | . . . . . Combat Hostiles . | . . . . . Parts Melted . | . . . . . Heat Transferred 625 | . 250 375 . . Parts Sabotaged . | . . . . . Parts Stolen . | . . . . . Parts Stripped . | . . . . . Power Chain Reactions 3 | . 2 1 . . Missiles Intercepted . | . . . . . Alert | -11 -10 -10 -10 -9 ------- Run | Scr Mat Min Exi Min Peak Influence 377 | . 377 283 . 15 Average Influence 178 | . 190 177 . 10 Maximum Alert Level 1 | . 1 1 . . Low Security (%) 59 | 100 48 66 . 100 Level 1 40 | . 51 33 . . Level 2 . | . . . . . Level 3 . | . . . . . Level 4 . | . . . . . Level 5 . | . . . . . High Security . | . . . . . Max Security . | . . . . . Squads Dispatched 5 | . 5 . . . Investigation 2 | . 2 . . . Extermination . | . . . . . Reinforcement 3 | . 3 . . . Assault . | . . . . . Garrison . | . . . . . Intercept . | . . . . . Construction Impeded . | . . . . . Haulers Reinforced . | . . . . . Stealth | -11 -10 -10 -10 -9 --------- Run | Scr Mat Min Exi Min Distress Signals . | . . . . . Communications Jammed . | . . . . . Distress Signals . | . . . . . Times Spotted 57 | . 30 24 . 3 Peak Tracking Total 4 | . 4 4 . 3 Tactical Retreats 2 | . . 2 . . Traps | -11 -10 -10 -10 -9 ------- Run | Scr Mat Min Exi Min Traps Triggered 4 | . 4 . . . Indirectly . | . . . . . Trap Hack Attempts . | . . . . . Triggered . | . . . . . Disarmed . | . . . . . Reprogrammed . | . . . . . Reused . | . . . . . Traps Extracted . | . . . . . Installed . | . . . . . Triggered . | . . . . . Machines | -11 -10 -10 -10 -9 ---------- Run | Scr Mat Min Exi Min Machines Disabled . | . . . . . Max in Single Turn . | . . . . . Machines Sabotaged . | . . . . . Garrisons Compromised . | . . . . . Overloaded Fab Kills . | . . . . . Fab Network Shutdowns . | . . . . . Hacking | -11 -10 -10 -10 -9 --------- Run | Scr Mat Min Exi Min Machines Accessed 5 | . 3 1 1 . Terminals 3 | . 2 1 . . Fabricators . | . . . . . Repair Stations . | . . . . . Recycling Units 1 | . 1 . . . Scanalyzers . | . . . . . Garrison Access . | . . . . . Total Hacks 8 | . 6 1 1 . Successful 5 | . 3 1 1 . Failed 3 | . 3 . . . Catastrophic 1 | . 1 . . . Database Lockouts . | . . . . . Manual 5 | . 3 1 1 . Terminals 6 | . 5 1 . . Fabricators . | . . . . . Repair Stations . | . . . . . Recycling Units 1 | . 1 . . . Scanalyzers . | . . . . . Garrison Access . | . . . . . Terminal Hacks 3 | . 1 1 1 . Record 1 | . . . 1 . Hauler Manifests 1 | . 1 . . . Zone Layout 1 | . . 1 . . Fabricator Hacks . | . . . . . Repair Station Hacks . | . . . . . Recycling Unit Hacks . | . . . . . Scanalyzer . | . . . . . Garrison Access Hacks . | . . . . . Unauthorized Hacks 2 | . 2 . . . Terminals 1 | . 1 . . . Operators 1 | . 1 . . . Fabricators . | . . . . . Repair Stations . | . . . . . Recycling Units 1 | . 1 . . . Tunnel 1 | . 1 . . . Scanalyzers . | . . . . . Garrison Access . | . . . . . Data Cores Recovered . | . . . . . Used . | . . . . . Hacking Detections 3 | . 2 1 . . Full Trace Events . | . . . . . Feedback Events . | . . . . . Feedback Blocked . | . . . . . Robot Schematics Acquired . | . . . . . Robots Built . | . . . . . Matter . | . . . . . Time . | . . . . . Total Robot Build Rating . | . . . . . Part Schematics Acquired . | . . . . . Parts Built . | . . . . . Matter . | . . . . . Time . | . . . . . Total Part Build Rating . | . . . . . Parts Repaired . | . . . . . Time . | . . . . . Parts Recycled . | . . . . . Recycled Matter . | . . . . . Retrieved Matter . | . . . . . Retrieved Components . | . . . . . Parts Scanalyzed . | . . . . . Part Schematics Acquired . | . . . . . Parts Damaged . | . . . . . Bothacking | -11 -10 -10 -10 -9 ------------ Run | Scr Mat Min Exi Min Used RIF Installer . | . . . . . Robots Hacked . | . . . . . Non-combat . | . . . . . Combat . | . . . . . Robot Hacks Applied . | . . . . . Relay Couplers Released . | . . . . . Robots Rewired . | . . . . . Allies Hacked . | . . . . . Hacks Repelled . | . . . . . Allies | -11 -10 -10 -10 -9 -------- Run | Scr Mat Min Exi Min Total Allies 2 | . . 2 . . Largest Group 2 | . . 2 . . Highest-Rated Group 42 | . . 42 . . Highest-Rated Ally 31 | . . 31 . . Total Orders . | . . . . . Ally Attacks 14 | . . 14 . . Total Damage 178 | . . 178 . . Kills 2 | . . 2 . . Allies Corrupted . | . . . . . Allies Melted . | . . . . . Intel | -11 -10 -10 -10 -9 ------- Run | Scr Mat Min Exi Min Robot Analysis Total . | . . . . . Derelict Logs Recovered 1 | . . 1 . . Drone Launches . | . . . . . Drone Recoveries . | . . . . . Exploration | -11 -10 -10 -10 -9 ------------- Run | Scr Mat Min Exi Min Turns Passed 2775 | 50 912 1131 675 7 Spaces Moved 1799 | 36 577 693 492 1 Core 20 | 20 . . . . Treads . | . . . . . Legs 1779 | 16 577 693 492 1 Wheels . | . . . . . Hover . | . . . . . Flight . | . . . . . Fastest Speed 50 | 50 120 120 120 120 Average Speed 124 | 108 121 130 120 120 Slowest Speed 200 | 200 150 150 120 120 Overloaded Moves . | . . . . . Propulsion Burnouts . | . . . . . Robots Hopped . | . . . . . Cave-ins Triggered . | . . . . . Exploration Rate (%) 58 | 4 96 96 92 2 Regions Visited 4 Branch Regions 3 Pre-discovered Areas 3 | . 1 1 1 . Known Exits Taken . | . . . . . Unknown Exits Taken 4 | 1 1 1 1 . Scrap Searched 1 | . . 1 . . Spaces Dug . | . . . . . Terrain Destroyed 11 | . 4 7 . . Melee . | . . . . . Projectile . | . . . . . AOE 11 | . 4 7 . . Actions | -11 -10 -10 -10 -9 --------- Run | Scr Mat Min Exi Min Total 2079 | 44 692 811 529 3 Wait 51 | 1 29 21 . . Move 1795 | 35 576 692 491 1 Hop . | . . . . . Pick Up 18 | 2 8 3 5 . Fast Attach 14 | 6 6 2 . . Attach 8 | . 2 6 . . Detach 2 | . 2 . . . Swap 13 | . 7 5 1 . Drop 15 | . 11 3 1 . Fire 162 | . 51 79 30 2 Melee . | . . . . . Ram . | . . . . . Kick . | . . . . . Crush . | . . . . . Escape Stasis . | . . . . . Rewire 1 | . . . 1 . Trap . | . . . . . Miscellaneous . | . . . . . Route ------- -11/Scrapyard -10/Materials (discovered 5 exits: [*Mat x3] / *Min x2) -10/Mines (discovered 3 exits: [*Mat x2] / *Exi) -10/Exiles -9/Mines History --------- Turn | Location | Event 3 | -11/Scrapyard | Discovered new exit (range 15) 51 | -11/Scrapyard | Entered Materials 255 | -10/Materials | Discovered new exit (range 15) 308 | -10/Materials | Build established: Mutant 374 | -10/Materials | Discovered new exit (range 8) 477 | -10/Materials | Discovered new exit (range 16) 658 | -10/Materials | Discovered new exit (range 8) 721 | -10/Materials | Discovered new exit (range 6) 963 | -10/Materials | Entered Mines 1149 | -10/Mines | Discovered new exit (range 12) 1262 | -10/Mines | Deemed a non-threat by the Exiles lab entrance 1504 | -10/Mines | Learned location of Storage (-8) 1509 | -10/Mines | Discovered new exit (range 11) 1541 | -10/Mines | Excavation squad dispatched 1541 | -10/Mines | A large section of the Mines collapsed 1559 | -10/Mines | Core integrity fell below 50% 1828 | -10/Mines | Core integrity fell below 20% 1940 | -10/Mines | Build established: Scavenger-Mutant 2089 | -10/Mines | Discovered new exit (range 5) 2094 | -10/Mines | Entered Exiles 2094 | -10/Exiles | Found Exiles lab destroyed 2339 | -10/Exiles | Learned location of Zion (-6) 2757 | -10/Exiles | Discovered new exit (range 12) 2769 | -10/Exiles | Entered Mines 2776 | -9/Mines | Destroyed by L-31 Rogue with Katana Last Messages --------------- 02452_ P-60 Hacker destroyed. 02455_ Acquired 12 matter. 02461_ Acquired Imp. Heat Sink. 02467_ Acquired Shock Rifle. 02484_ Acquired Mak. System Shield. 02526_ System corrupted: Component data lost. 02545_ System corrupted: Heat flow error (+118). 02591_ System corrupted: Heat flow error (+138). 02657_ System corrupted: Lgt. Assault Rifle targeting data glitched. 02673_ H-55 Commando destroyed. 02679_ Dropped Aluminum Leg. 02680_ Acquired 24 matter. 02735_ F7T&PIO1S,OLUAMNCVXQ 02756_ KYZ97LSRXRK%PEHMWB9ALDWJ7NHJWDEUYGQ 02757_ EXIT=FOUND LOCATION=UNKNOWN GOAL=ESCAPE 02771_ System corrupted: Energy discharge (-48). 02775_ Lgt. Assault Rifle destroyed. 02775_ Lgt. Ion Engine destroyed. Map ----- +----------------------------------------------------+ | ???????????????????????????????????? | | ???????????????????????????????????? | | ???????????????????????????????????? | | ???????????????????????????????????? | | ???????????????????????????????????? | | ???????????????????????????????????? | | ???????????????????????????????????? | | ???????????????????????????????????? | | ???????????????????????????????????? | | ???????????????????????????????????? | | ???????????????????????????????????? | | ???????????????????????????????????? | | ???????????????????????????????????? | | ???????????????????????????????????? | | ??????????????????????????##???????? | | ?????????????????????????? #???????? | | ?????????????????????????# #???????? | | ?????????????????????????# #???????? | | ?????????????????????????# #???????? | | ???????????????????????### ###?????? | | ???????????????????????# #?????? | | ???????????????????????# #?????? | | ???????????????????????# #?????? | | ???????????????????????# #?????? | | ???????????????????????# lg #?????? | | ???????????????????????# @g #?????? | | ???????????????????????#######?????? | | ???????????????????????????????????? | | ???????????????????????????????????? | | ???????????????????????????????????? | | ???????????????????????????????????? | | ???????????????????????????????????? | | ???????????????????????????????????? | | ???????????????????????????????????? | | ???????????????????????????????????? | | ???????????????????????????????????? | | ???????????????????????????????????? | | ???????????????????????????????????? | | ???????????????????????????????????? | | ???????????????????????????????????? | | ???????????????????????????????????? | | ???????????????????????????????????? | | ???????????????????????????????????? | | ???????????????????????????????????? | | ???????????????????????????????????? | | ???????????????????????????????????? | | ???????????????????????????????????? | | ???????????????????????????????????? | | ???????????????????????????????????? | | ???????????????????????????????????? | +----------------------------------------------------+ Best States ------------- Heat Dissipation 25 Energy Generation 10 Energy Capacity 125 Matter Stores 300 Matter Capacity 300 Sight Range 16 Terrain Scan Density 10 Armor Coverage 225 Evasion (%) 40 Item Schematics ----------------- None Robot Schematics ------------------ None Fabricated ------------ Nothing Alien Tech Used ----------------- None Achievements -------------- None Challenges ------------ None Game ------ Seed AntimissileExplosiveHammer Manual? 0 Play Time 00:14:21 Cumulative 236.5 hours Start 2020.06.05 @ 12:56:01 End 2020.06.05 @ 13:19:55 Sessions 1 Manual Loads 0 Difficulty Rogue Special Mode None Game No. 388 Rogue 388 Adventurer 0 Explorer 0 Win Type - Total 5 Types 3/0/1/1/0/0/0 Lore% 79 Gallery% 80 Achievement% 60 Wizard Run 0 Options --------- ASCII 0 Keyboard 1 Movement Numpad Keybinds 0 Fullscreen 2 Font 18/X11Bold Map View 76x50 Tactical HUD 1 Map Filters NONE Filters NONE Steam 1 RUN: a7f92225-c04f-412e-ad25-0732f5908b0d